[Event "Titled Tuesday Blitz July 11 Early 2023"]
[White "Ahn, Hongjin"]
[Black "Mishra, Manoj"]
[WhiteFideId "13201492"]
[BlackFideId "5006007"]
[WhiteElo "2378"]
[BlackElo "2172"]
[Result "1-0"]
[Round "4"]
[TimeControl "180+2"]
[Date "2023.07.11"]
[WhiteClock "0:00:44"]
[BlackClock "0:01:16"]
[Board "203"]

1. d4 {[%clk 0:03:00]}  Nf6 {[%clk 0:02:59]} 2. Bf4 {[%clk 0:03:00]}  g6 {[%clk 0:02:58]} 3. e3 {[%clk 0:03:01]}  Bg7 {[%clk 0:02:58]} 4. h4 {[%clk 0:03:01]}  h6 {[%clk 0:02:56]} 5. Nf3 {[%clk 0:02:58]}  d6 {[%clk 0:02:52]} 6. Bc4 {[%clk 0:02:56]}  c6 {[%clk 0:02:50]} 7. Nbd2 {[%clk 0:02:55]}  b5 {[%clk 0:02:49]} 8. Bb3 {[%clk 0:02:53]}  a5 {[%clk 0:02:49]} 9. a4 {[%clk 0:02:53]}  Nbd7 {[%clk 0:02:43]} 10. c3 {[%clk 0:02:23]}  Ba6 {[%clk 0:02:30]} 11. Qc2 {[%clk 0:02:22]}  Nh5 {[%clk 0:02:24]} 12. Bh2 {[%clk 0:02:13]}  e5 {[%clk 0:02:24]} 13. g4 {[%clk 0:02:08]}  Nhf6 {[%clk 0:02:12]} 14. dxe5 {[%clk 0:02:05]}  Nxg4 {[%clk 0:02:04]} 15. e6 {[%clk 0:01:51]}  Nde5 {[%clk 0:01:59]} 16. exf7+ {[%clk 0:01:45]}  Kf8 {[%clk 0:01:55]} 17. Bxe5 {[%clk 0:01:36]}  Nxe5 {[%clk 0:01:48]} 18. Nxe5 {[%clk 0:01:33]}  dxe5 {[%clk 0:01:49]} 19. Qxg6 {[%clk 0:01:22]}  bxa4 {[%clk 0:01:46]} 20. Rg1 {[%clk 0:01:16]}  Qf6 {[%clk 0:01:40]} 21. Qxf6 {[%clk 0:01:01]}  Bxf6 {[%clk 0:01:41]} 22. Rg8+ {[%clk 0:01:01]}  Ke7 {[%clk 0:01:40]} 23. Rxa4 {[%clk 0:00:57]}  Bb5 {[%clk 0:01:25]} 24. Rxa5 {[%clk 0:00:53]}  Rf8 {[%clk 0:01:16]} 25. Ra7+ {[%clk 0:00:44]}  Kd6 {[%clk 0:01:16]} 26. Ne4# {[%clk 0:00:44]} 1-0


[Site "https://www.chess.com"]

[Event "Titled Tuesday Blitz July 11 Early 2023"]
[White "Hartikainen, Jarmo"]
[Black "Makhmudov, Shukhrat"]
[WhiteFideId "503134"]
[BlackFideId "14200775"]
[WhiteElo "2153"]
[BlackElo "2360"]
[Result "1/2-1/2"]
[Round "4"]
[TimeControl "180+2"]
[Date "2023.07.11"]
[WhiteClock "0:00:28"]
[BlackClock "0:01:17"]
[Board "206"]

1. e4 {[%clk 0:03:00]}  e5 {[%clk 0:02:59]} 2. Nf3 {[%clk 0:03:00]}  Nc6 {[%clk 0:02:59]} 3. Bc4 {[%clk 0:03:00]}  Nf6 {[%clk 0:02:59]} 4. Ng5 {[%clk 0:03:00]}  d5 {[%clk 0:02:58]} 5. exd5 {[%clk 0:03:00]}  Na5 {[%clk 0:02:58]} 6. Bb5+ {[%clk 0:03:00]}  c6 {[%clk 0:02:59]} 7. dxc6 {[%clk 0:03:00]}  bxc6 {[%clk 0:03:00]} 8. Bd3 {[%clk 0:03:00]}  Ng4 {[%clk 0:02:57]} 9. Nf3 {[%clk 0:02:47]}  f5 {[%clk 0:02:57]} 10. h3 {[%clk 0:02:22]}  e4 {[%clk 0:02:52]} 11. hxg4 {[%clk 0:02:18]}  exd3 {[%clk 0:02:52]} 12. cxd3 {[%clk 0:02:11]}  Qxd3 {[%clk 0:02:42]} 13. Qe2+ {[%clk 0:02:09]}  Qxe2+ {[%clk 0:02:41]} 14. Kxe2 {[%clk 0:02:10]}  fxg4 {[%clk 0:02:40]} 15. Ne5 {[%clk 0:02:01]}  Bd6 {[%clk 0:02:38]} 16. d4 {[%clk 0:01:57]}  c5 {[%clk 0:02:38]} 17. Be3 {[%clk 0:01:48]}  O-O {[%clk 0:02:27]} 18. Nc3 {[%clk 0:01:32]}  cxd4 {[%clk 0:02:26]} 19. Bxd4 {[%clk 0:01:31]}  Bxe5 {[%clk 0:02:16]} 20. Bxe5 {[%clk 0:01:30]}  Re8 {[%clk 0:02:16]} 21. Rh5 {[%clk 0:01:29]}  g6 {[%clk 0:02:16]} 22. Rg5 {[%clk 0:01:25]}  Bf5 {[%clk 0:02:16]} 23. f4 {[%clk 0:00:57]}  Nc4 {[%clk 0:01:49]} 24. Nd5 {[%clk 0:00:39]}  Nxe5 {[%clk 0:01:47]} 25. Nf6+ {[%clk 0:00:38]}  Kf7 {[%clk 0:01:46]} 26. Nxe8 {[%clk 0:00:38]}  Rxe8 {[%clk 0:01:40]} 27. Rxf5+ {[%clk 0:00:24]}  gxf5 {[%clk 0:01:39]} 28. fxe5 {[%clk 0:00:25]}  Rxe5+ {[%clk 0:01:39]} 29. Kd3 {[%clk 0:00:25]}  f4 {[%clk 0:01:35]} 30. Rf1 {[%clk 0:00:24]}  Rf5 {[%clk 0:01:33]} 31. Ke4 {[%clk 0:00:24]}  Kf6 {[%clk 0:01:30]} 32. Rxf4 {[%clk 0:00:24]}  Rxf4+ {[%clk 0:01:28]} 33. Kxf4 {[%clk 0:00:25]}  h5 {[%clk 0:01:29]} 34. b4 {[%clk 0:00:24]}  Ke6 {[%clk 0:01:26]} 35. a4 {[%clk 0:00:24]}  Kd5 {[%clk 0:01:26]} 36. b5 {[%clk 0:00:24]}  Kc5 {[%clk 0:01:27]} 37. Kg5 {[%clk 0:00:25]}  Kb4 {[%clk 0:01:25]} 38. Kxh5 {[%clk 0:00:25]}  Kxa4 {[%clk 0:01:26]} 39. Kxg4 {[%clk 0:00:26]}  Kxb5 {[%clk 0:01:26]} 40. Kf5 {[%clk 0:00:25]}  a5 {[%clk 0:01:18]} 41. g4 {[%clk 0:00:25]}  a4 {[%clk 0:01:19]} 42. g5 {[%clk 0:00:26]}  a3 {[%clk 0:01:20]} 43. g6 {[%clk 0:00:27]}  a2 {[%clk 0:01:20]} 44. g7 {[%clk 0:00:28]}  a1=Q {[%clk 0:01:20]} 45. g8=Q {[%clk 0:00:28]}  Qf1+ {[%clk 0:01:21]} 46. Kg6 {[%clk 0:00:28]}  Qg2+ {[%clk 0:01:21]} 47. Kf7 {[%clk 0:00:28]}  Qd5+ {[%clk 0:01:20]} 48. Kf8 {[%clk 0:00:28]}  Qd8+ {[%clk 0:01:20]} 49. Kf7 {[%clk 0:00:28]}  Qd5+ {[%clk 0:01:20]} 50. Kf8 {[%clk 0:00:29]}  Qd6+ {[%clk 0:01:21]} 51. Kg7 {[%clk 0:00:28]}  Qe5+ {[%clk 0:01:20]} 52. Kh7 {[%clk 0:00:27]}  Qh5+ {[%clk 0:01:20]} 53. Kg7 {[%clk 0:00:28]}  Qg5+ {[%clk 0:01:21]} 54. Kh7 {[%clk 0:00:28]}  Qh5+ {[%clk 0:01:20]} 55. Kg7 {[%clk 0:00:28]}  Qe5+ {[%clk 0:01:20]} 56. Kh7 {[%clk 0:00:28]}  Qf5+ {[%clk 0:01:18]} 57. Qg6 {[%clk 0:00:28]}  Qxg6+ {[%clk 0:01:17]} 58. Kxg6 {[%clk 0:00:28]} 1/2-1/2


[Site "https://www.chess.com"]

[Event "Titled Tuesday Blitz July 11 Early 2023"]
[White "Mejia, Cherry Ann"]
[Black "Cardenas Carbajal, Nilson"]
[WhiteFideId "5206880"]
[BlackFideId "8401128"]
[WhiteElo "2345"]
[BlackElo "2132"]
[Result "1-0"]
[Round "4"]
[TimeControl "180+2"]
[Date "2023.07.11"]
[WhiteClock "0:00:14"]
[BlackClock "0:00:06"]
[Board "208"]

1. e4 {[%clk 0:02:57]}  e5 {[%clk 0:02:57]} 2. Nf3 {[%clk 0:02:57]}  Nc6 {[%clk 0:02:57]} 3. Bb5 {[%clk 0:02:57]}  a6 {[%clk 0:02:56]} 4. Ba4 {[%clk 0:02:56]}  Nf6 {[%clk 0:02:55]} 5. Qe2 {[%clk 0:02:57]}  b5 {[%clk 0:02:51]} 6. Bb3 {[%clk 0:02:56]}  Bc5 {[%clk 0:02:50]} 7. c3 {[%clk 0:02:56]}  d6 {[%clk 0:02:47]} 8. O-O {[%clk 0:02:56]}  O-O {[%clk 0:02:47]} 9. Rd1 {[%clk 0:02:56]}  Bb6 {[%clk 0:02:42]} 10. d3 {[%clk 0:02:55]}  Qe7 {[%clk 0:02:38]} 11. Nbd2 {[%clk 0:02:50]}  Be6 {[%clk 0:02:35]} 12. Bc2 {[%clk 0:02:49]}  Bd7 {[%clk 0:02:32]} 13. Nf1 {[%clk 0:02:49]}  Bg4 {[%clk 0:02:18]} 14. h3 {[%clk 0:02:48]}  Bh5 {[%clk 0:02:08]} 15. Ng3 {[%clk 0:02:46]}  Bg6 {[%clk 0:02:05]} 16. Nh4 {[%clk 0:02:39]}  Qe6 {[%clk 0:01:55]} 17. Nhf5 {[%clk 0:02:38]}  Ne7 {[%clk 0:01:52]} 18. Qf3 {[%clk 0:02:33]}  Bxf5 {[%clk 0:01:39]} 19. exf5 {[%clk 0:02:19]}  Qd5 {[%clk 0:01:28]} 20. Qe2 {[%clk 0:02:19]}  Qb7 {[%clk 0:01:12]} 21. d4 {[%clk 0:02:15]}  exd4 {[%clk 0:00:53]} 22. cxd4 {[%clk 0:02:16]}  Rfe8 {[%clk 0:00:52]} 23. Be3 {[%clk 0:02:11]}  Ned5 {[%clk 0:00:49]} 24. Qf3 {[%clk 0:02:07]}  Rab8 {[%clk 0:00:46]} 25. Ne4 {[%clk 0:01:59]}  Qa7 {[%clk 0:00:21]} 26. g4 {[%clk 0:01:53]}  Nxe4 {[%clk 0:00:18]} 27. Bxe4 {[%clk 0:01:54]}  Nf6 {[%clk 0:00:18]} 28. Bc6 {[%clk 0:01:53]}  Re7 {[%clk 0:00:18]} 29. g5 {[%clk 0:01:53]}  Ne8 {[%clk 0:00:17]} 30. f6 {[%clk 0:01:53]}  gxf6 {[%clk 0:00:17]} 31. gxf6 {[%clk 0:01:53]}  Re6 {[%clk 0:00:17]} 32. Kh2 {[%clk 0:01:28]}  Kh8 {[%clk 0:00:16]} 33. Bg5 {[%clk 0:00:50]}  Bxd4 {[%clk 0:00:13]} 34. Bd5 {[%clk 0:00:49]}  Be5+ {[%clk 0:00:07]} 35. Kg2 {[%clk 0:00:48]}  Rxf6 {[%clk 0:00:07]} 36. Bxf6+ {[%clk 0:00:48]}  Nxf6 {[%clk 0:00:08]} 37. Bxf7 {[%clk 0:00:46]}  c6 {[%clk 0:00:08]} 38. Bb3 {[%clk 0:00:40]}  Qg7+ {[%clk 0:00:08]} 39. Kh1 {[%clk 0:00:39]}  Rf8 {[%clk 0:00:08]} 40. Qg2 {[%clk 0:00:38]}  Qh6 {[%clk 0:00:07]} 41. Rg1 {[%clk 0:00:34]}  Nh5 {[%clk 0:00:07]} 42. Qg5 {[%clk 0:00:26]}  Qxg5 {[%clk 0:00:06]} 43. Rxg5 {[%clk 0:00:26]}  Nf4 {[%clk 0:00:05]} 44. Rag1 {[%clk 0:00:24]}  h6 {[%clk 0:00:05]} 45. Rg8+ {[%clk 0:00:23]}  Rxg8 {[%clk 0:00:05]} 46. Rxg8+ {[%clk 0:00:23]}  Kh7 {[%clk 0:00:06]} 47. Ra8 {[%clk 0:00:21]}  Nxh3 {[%clk 0:00:05]} 48. Kg2 {[%clk 0:00:21]}  Nf4+ {[%clk 0:00:05]} 49. Kf3 {[%clk 0:00:21]}  Nd3 {[%clk 0:00:04]} 50. Rxa6 {[%clk 0:00:19]}  c5 {[%clk 0:00:04]} 51. Ra7+ {[%clk 0:00:19]}  Kg6 {[%clk 0:00:04]} 52. Bc2 {[%clk 0:00:19]}  c4 {[%clk 0:00:04]} 53. Bxd3+ {[%clk 0:00:19]}  cxd3 {[%clk 0:00:05]} 54. b3 {[%clk 0:00:19]}  Bc3 {[%clk 0:00:04]} 55. Ke3 {[%clk 0:00:19]}  d2 {[%clk 0:00:03]} 56. Ke2 {[%clk 0:00:19]}  d5 {[%clk 0:00:04]} 57. Rb7 {[%clk 0:00:18]}  b4 {[%clk 0:00:03]} 58. Rd7 {[%clk 0:00:18]}  d4 {[%clk 0:00:03]} 59. Rd5 {[%clk 0:00:17]}  Kf6 {[%clk 0:00:03]} 60. Ra5 {[%clk 0:00:14]}  Ke6 {[%clk 0:00:04]} 61. a3 {[%clk 0:00:15]}  bxa3 {[%clk 0:00:03]} 62. Rxa3 {[%clk 0:00:14]}  Ke5 {[%clk 0:00:04]} 63. Ra5+ {[%clk 0:00:14]}  Ke4 {[%clk 0:00:05]} 64. f3+ {[%clk 0:00:14]}  Kf4 {[%clk 0:00:05]} 65. Ra8 {[%clk 0:00:13]}  h5 {[%clk 0:00:05]} 66. Rf8+ {[%clk 0:00:12]}  Kg3 {[%clk 0:00:05]} 67. f4 {[%clk 0:00:12]}  h4 {[%clk 0:00:06]} 68. f5 {[%clk 0:00:13]}  h3 {[%clk 0:00:07]} 69. f6 {[%clk 0:00:13]}  h2 {[%clk 0:00:07]} 70. Rh8 {[%clk 0:00:13]}  Kg2 {[%clk 0:00:06]} 71. f7 {[%clk 0:00:12]}  Bb4 {[%clk 0:00:07]} 72. Rg8+ {[%clk 0:00:10]}  Kh3 {[%clk 0:00:07]} 73. Rh8+ {[%clk 0:00:09]}  Kg2 {[%clk 0:00:07]} 74. Rg8+ {[%clk 0:00:08]}  Kh3 {[%clk 0:00:07]} 75. f8=Q {[%clk 0:00:09]}  Bxf8 {[%clk 0:00:06]} 76. Rxf8 {[%clk 0:00:09]}  h1=Q {[%clk 0:00:06]} 77. Rh8+ {[%clk 0:00:10]}  Kg2 {[%clk 0:00:07]} 78. Rxh1 {[%clk 0:00:11]}  Kxh1 {[%clk 0:00:08]} 79. b4 {[%clk 0:00:11]}  Kg2 {[%clk 0:00:08]} 80. b5 {[%clk 0:00:11]}  d1=Q+ {[%clk 0:00:08]} 81. Kxd1 {[%clk 0:00:11]}  Kf1 {[%clk 0:00:09]} 82. b6 {[%clk 0:00:12]}  Kf2 {[%clk 0:00:09]} 83. b7 {[%clk 0:00:13]}  d3 {[%clk 0:00:10]} 84. b8=Q {[%clk 0:00:13]}  Ke3 {[%clk 0:00:11]} 85. Qe5+ {[%clk 0:00:13]}  Kf3 {[%clk 0:00:11]} 86. Kd2 {[%clk 0:00:13]}  Kf2 {[%clk 0:00:06]} 87. Kxd3 {[%clk 0:00:14]} 1-0


[Site "https://www.chess.com"]

[Event "Titled Tuesday Blitz July 11 Early 2023"]
[White "AndresDelgado77"]
[Black "Johnson, Ben"]
[BlackFideId "2010917"]
[WhiteElo "2297"]
[BlackElo "2098"]
[Result "1-0"]
[Round "4"]
[TimeControl "180+2"]
[Date "2023.07.11"]
[WhiteClock "0:02:01"]
[BlackClock "0:00:20"]
[Board "211"]

1. e4 {[%clk 0:02:56]}  c5 {[%clk 0:03:00]} 2. Nf3 {[%clk 0:02:54]}  g6 {[%clk 0:03:00]} 3. d4 {[%clk 0:02:53]}  cxd4 {[%clk 0:03:01]} 4. Qxd4 {[%clk 0:02:54]}  Nf6 {[%clk 0:02:58]} 5. Bb5 {[%clk 0:02:53]}  a6 {[%clk 0:02:43]} 6. e5 {[%clk 0:02:51]}  axb5 {[%clk 0:02:15]} 7. exf6 {[%clk 0:02:51]}  exf6 {[%clk 0:02:16]} 8. O-O {[%clk 0:02:50]}  Bg7 {[%clk 0:02:01]} 9. Qd6 {[%clk 0:02:25]}  Nc6 {[%clk 0:01:39]} 10. Nc3 {[%clk 0:02:25]}  Qa5 {[%clk 0:00:59]} 11. Nd5 {[%clk 0:02:17]}  Ra6 {[%clk 0:00:38]} 12. Nc7+ {[%clk 0:02:14]}  Kd8 {[%clk 0:00:39]} 13. Nxa6 {[%clk 0:02:13]}  bxa6 {[%clk 0:00:40]} 14. Bf4 {[%clk 0:02:07]}  Qb4 {[%clk 0:00:33]} 15. Qc7+ {[%clk 0:02:05]}  Ke8 {[%clk 0:00:20]} 16. Rfe1+ {[%clk 0:02:01]} 1-0


[Site "https://www.chess.com"]

[Event "Titled Tuesday Blitz July 11 Early 2023"]
[White "Goughfather"]
[Black "Ardila, Oscar Humberto"]
[BlackFideId "4404742"]
[WhiteElo "2027"]
[BlackElo "2290"]
[Result "1-0"]
[Round "4"]
[TimeControl "180+2"]
[Date "2023.07.11"]
[WhiteClock "0:00:05"]
[BlackClock "0:00:13"]
[Board "213"]

1. d4 {[%clk 0:03:00]}  Nf6 {[%clk 0:02:56]} 2. Nc3 {[%clk 0:03:00]}  e6 {[%clk 0:02:53]} 3. Bf4 {[%clk 0:02:45]}  Nd5 {[%clk 0:02:50]} 4. Nxd5 {[%clk 0:02:36]}  exd5 {[%clk 0:02:50]} 5. c3 {[%clk 0:02:36]}  Be7 {[%clk 0:02:47]} 6. e3 {[%clk 0:02:27]}  O-O {[%clk 0:02:46]} 7. Bd3 {[%clk 0:02:27]}  c6 {[%clk 0:02:46]} 8. Qh5 {[%clk 0:02:04]}  g6 {[%clk 0:02:46]} 9. Qh6 {[%clk 0:01:54]}  Bf6 {[%clk 0:02:46]} 10. Nf3 {[%clk 0:01:45]}  Bg7 {[%clk 0:02:44]} 11. Qg5 {[%clk 0:01:44]}  f6 {[%clk 0:02:38]} 12. Qg3 {[%clk 0:01:43]}  b6 {[%clk 0:02:20]} 13. Bxb8 {[%clk 0:01:40]}  Ba6 {[%clk 0:02:20]} 14. Bxa6 {[%clk 0:01:33]}  Rxb8 {[%clk 0:02:20]} 15. Bd3 {[%clk 0:01:31]}  f5 {[%clk 0:02:17]} 16. h4 {[%clk 0:01:29]}  Bh6 {[%clk 0:01:59]} 17. Qd6 {[%clk 0:01:10]}  Rf6 {[%clk 0:01:57]} 18. Qg3 {[%clk 0:00:55]}  f4 {[%clk 0:01:51]} 19. exf4 {[%clk 0:00:54]}  Bxf4 {[%clk 0:01:52]} 20. Qg4 {[%clk 0:00:54]}  Qe7+ {[%clk 0:01:45]} 21. Kf1 {[%clk 0:00:53]}  h5 {[%clk 0:01:44]} 22. Qh3 {[%clk 0:00:49]}  Rbf8 {[%clk 0:01:40]} 23. Re1 {[%clk 0:00:46]}  Qd6 {[%clk 0:01:39]} 24. Re2 {[%clk 0:00:36]}  c5 {[%clk 0:01:37]} 25. Ne5 {[%clk 0:00:25]}  cxd4 {[%clk 0:01:31]} 26. cxd4 {[%clk 0:00:25]}  Qb4 {[%clk 0:00:37]} 27. g3 {[%clk 0:00:24]}  Bxe5 {[%clk 0:00:36]} 28. dxe5 {[%clk 0:00:21]}  R6f7 {[%clk 0:00:35]} 29. Bxg6 {[%clk 0:00:19]}  Rg7 {[%clk 0:00:36]} 30. Bxh5 {[%clk 0:00:18]}  Qd4 {[%clk 0:00:34]} 31. Kg2 {[%clk 0:00:14]}  Qc4 {[%clk 0:00:26]} 32. Rhe1 {[%clk 0:00:13]}  d4 {[%clk 0:00:26]} 33. e6 {[%clk 0:00:11]}  Qd5+ {[%clk 0:00:26]} 34. Kh2 {[%clk 0:00:10]}  d3 {[%clk 0:00:27]} 35. e7 {[%clk 0:00:07]}  Rxe7 {[%clk 0:00:15]} 36. Rxe7 {[%clk 0:00:06]}  Rxf2+ {[%clk 0:00:15]} 37. Kg1 {[%clk 0:00:05]}  d2 {[%clk 0:00:13]} 38. Qg4+ {[%clk 0:00:05]}  Kf8 {[%clk 0:00:13]} 39. Qg7# {[%clk 0:00:05]} 1-0


[Site "https://www.chess.com"]

[Event "Titled Tuesday Blitz July 11 Early 2023"]
[White "Xavier_mompel"]
[Black "abelmat"]
[WhiteElo "2253"]
[BlackElo "1953"]
[Result "1-0"]
[Round "4"]
[TimeControl "180+2"]
[Date "2023.07.11"]
[WhiteClock "0:00:02"]
[BlackClock "0:00:00"]
[Board "216"]

1. e4 {[%clk 0:03:00]}  e6 {[%clk 0:02:53]} 2. d4 {[%clk 0:03:00]}  d5 {[%clk 0:02:52]} 3. Nc3 {[%clk 0:03:00]}  dxe4 {[%clk 0:02:51]} 4. Nxe4 {[%clk 0:03:00]}  Nd7 {[%clk 0:02:50]} 5. Nf3 {[%clk 0:02:59]}  Ngf6 {[%clk 0:02:50]} 6. Bg5 {[%clk 0:02:58]}  Be7 {[%clk 0:02:50]} 7. Nxf6+ {[%clk 0:02:57]}  Nxf6 {[%clk 0:02:51]} 8. Bd3 {[%clk 0:02:56]}  O-O {[%clk 0:02:50]} 9. O-O {[%clk 0:02:55]}  b6 {[%clk 0:02:49]} 10. c3 {[%clk 0:02:51]}  Bb7 {[%clk 0:02:49]} 11. Ne5 {[%clk 0:02:49]}  h6 {[%clk 0:02:44]} 12. Bxf6 {[%clk 0:02:49]}  Bxf6 {[%clk 0:02:41]} 13. Qe2 {[%clk 0:02:47]}  c5 {[%clk 0:02:28]} 14. Rad1 {[%clk 0:02:39]}  cxd4 {[%clk 0:02:27]} 15. cxd4 {[%clk 0:02:40]}  Qd5 {[%clk 0:02:21]} 16. Nf3 {[%clk 0:01:41]}  Qxa2 {[%clk 0:02:08]} 17. Bc4 {[%clk 0:01:33]}  Bxf3 {[%clk 0:01:58]} 18. gxf3 {[%clk 0:01:20]}  Qa5 {[%clk 0:01:52]} 19. d5 {[%clk 0:01:14]}  exd5 {[%clk 0:01:28]} 20. Rxd5 {[%clk 0:01:15]}  Qb4 {[%clk 0:01:03]} 21. b3 {[%clk 0:01:15]}  Rae8 {[%clk 0:00:59]} 22. Qd3 {[%clk 0:01:09]}  Rd8 {[%clk 0:00:51]} 23. Rd1 {[%clk 0:00:55]}  Rxd5 {[%clk 0:00:46]} 24. Qxd5 {[%clk 0:00:55]}  Qe7 {[%clk 0:00:33]} 25. Qb5 {[%clk 0:00:44]}  Be5 {[%clk 0:00:24]} 26. Rd5 {[%clk 0:00:35]}  Bf6 {[%clk 0:00:15]} 27. Kf1 {[%clk 0:00:15]}  Rd8 {[%clk 0:00:15]} 28. Kg2 {[%clk 0:00:09]}  Rxd5 {[%clk 0:00:12]} 29. Qxd5 {[%clk 0:00:10]}  g6 {[%clk 0:00:11]} 30. Qd3 {[%clk 0:00:08]}  Kg7 {[%clk 0:00:10]} 31. h3 {[%clk 0:00:06]}  h5 {[%clk 0:00:10]} 32. Kf1 {[%clk 0:00:04]}  Qe5 {[%clk 0:00:09]} 33. Qd7 {[%clk 0:00:04]}  Qa1+ {[%clk 0:00:06]} 34. Kg2 {[%clk 0:00:04]}  Qe5 {[%clk 0:00:04]} 35. Qxf7+ {[%clk 0:00:04]}  Kh6 {[%clk 0:00:04]} 36. Qg8 {[%clk 0:00:03]}  Qg5+ {[%clk 0:00:03]} 37. Kh1 {[%clk 0:00:02]}  Qf4 {[%clk 0:00:02]} 38. Be6 {[%clk 0:00:02]}  Qxf3+ {[%clk 0:00:02]} 39. Kg1 {[%clk 0:00:02]}  Qd1+ {[%clk 0:00:00]} 40. Kg2 {[%clk 0:00:02]} 1-0


[Site "https://www.chess.com"]

[Event "Titled Tuesday Blitz July 11 Early 2023"]
[White "Lohani, Sujana"]
[Black "rionelG"]
[WhiteFideId "12311987"]
[WhiteElo "1923"]
[BlackElo "2252"]
[Result "0-1"]
[Round "4"]
[TimeControl "180+2"]
[Date "2023.07.11"]
[WhiteClock "0:00:00"]
[BlackClock "0:00:50"]
[Board "217"]

1. d4 {[%clk 0:03:00]}  Nf6 {[%clk 0:02:59]} 2. Nf3 {[%clk 0:03:01]}  g6 {[%clk 0:03:00]} 3. c4 {[%clk 0:03:01]}  Bg7 {[%clk 0:03:00]} 4. Nc3 {[%clk 0:03:01]}  O-O {[%clk 0:03:01]} 5. e4 {[%clk 0:03:00]}  d6 {[%clk 0:03:01]} 6. e5 {[%clk 0:03:00]}  dxe5 {[%clk 0:02:57]} 7. Nxe5 {[%clk 0:03:00]}  c5 {[%clk 0:02:55]} 8. Be3 {[%clk 0:02:53]}  cxd4 {[%clk 0:02:54]} 9. Bxd4 {[%clk 0:02:53]}  Nc6 {[%clk 0:02:51]} 10. Nxc6 {[%clk 0:02:48]}  bxc6 {[%clk 0:02:51]} 11. Be2 {[%clk 0:02:47]}  Re8 {[%clk 0:02:43]} 12. O-O {[%clk 0:02:46]}  e5 {[%clk 0:02:43]} 13. Be3 {[%clk 0:02:46]}  Qc7 {[%clk 0:02:42]} 14. Qc1 {[%clk 0:02:40]}  Ng4 {[%clk 0:02:38]} 15. Bxg4 {[%clk 0:02:26]}  Bxg4 {[%clk 0:02:37]} 16. Bh6 {[%clk 0:02:27]}  Bh8 {[%clk 0:02:35]} 17. h3 {[%clk 0:02:26]}  Be6 {[%clk 0:02:35]} 18. Ne4 {[%clk 0:02:23]}  Rad8 {[%clk 0:02:25]} 19. Bg5 {[%clk 0:02:23]}  Rd4 {[%clk 0:02:12]} 20. Nf6+ {[%clk 0:02:22]}  Bxf6 {[%clk 0:02:11]} 21. Bxf6 {[%clk 0:02:22]}  Qd6 {[%clk 0:02:10]} 22. c5 {[%clk 0:01:53]}  Qf8 {[%clk 0:01:57]} 23. Bxe5 {[%clk 0:01:51]}  Rc4 {[%clk 0:01:55]} 24. Qg5 {[%clk 0:01:45]}  Rxc5 {[%clk 0:01:49]} 25. Qf6 {[%clk 0:01:43]}  Rxe5 {[%clk 0:01:49]} 26. Qxe5 {[%clk 0:01:43]}  Bc4 {[%clk 0:01:50]} 27. Qc3 {[%clk 0:01:22]}  Bxf1 {[%clk 0:01:49]} 28. Kxf1 {[%clk 0:01:20]}  Qd6 {[%clk 0:01:46]} 29. Rc1 {[%clk 0:01:10]}  Qh2 {[%clk 0:01:37]} 30. f3 {[%clk 0:01:02]}  Re6 {[%clk 0:01:37]} 31. Kf2 {[%clk 0:00:53]}  Qf4 {[%clk 0:01:29]} 32. Rd1 {[%clk 0:00:50]}  Rd6 {[%clk 0:01:16]} 33. Rxd6 {[%clk 0:00:28]}  Qxd6 {[%clk 0:01:17]} 34. a3 {[%clk 0:00:22]}  h5 {[%clk 0:01:15]} 35. Qc4 {[%clk 0:00:15]}  Qd2+ {[%clk 0:01:11]} 36. Kg3 {[%clk 0:00:14]}  Qxb2 {[%clk 0:01:07]} 37. Qa4 {[%clk 0:00:09]}  Qe5+ {[%clk 0:00:59]} 38. Kf2 {[%clk 0:00:09]}  Qc5+ {[%clk 0:00:58]} 39. Kg3 {[%clk 0:00:08]}  Kg7 {[%clk 0:00:57]} 40. Qb3 {[%clk 0:00:06]}  Qe5+ {[%clk 0:00:55]} 41. Kf2 {[%clk 0:00:06]}  a5 {[%clk 0:00:52]} 42. Qc4 {[%clk 0:00:04]}  Qd5 {[%clk 0:00:51]} 43. Qc3+ {[%clk 0:00:00]}  Kg8 {[%clk 0:00:50]} 0-1


[Site "https://www.chess.com"]

[Event "Titled Tuesday Blitz July 11 Early 2023"]
[White "Erigaisi Arjun"]
[Black "Turski, Bartlomiej"]
[WhiteFideId "35009192"]
[BlackFideId "21810567"]
[WhiteElo "3117"]
[BlackElo "2883"]
[Result "1-0"]
[Round "5"]
[TimeControl "180+2"]
[Date "2023.07.11"]
[WhiteClock "0:00:53"]
[BlackClock "0:00:47"]
[Board "2"]

1. c4 {[%clk 0:03:00]}  Nf6 {[%clk 0:02:47]} 2. Nc3 {[%clk 0:02:59]}  g6 {[%clk 0:02:45]} 3. g3 {[%clk 0:02:58]}  Bg7 {[%clk 0:02:45]} 4. Bg2 {[%clk 0:02:59]}  O-O {[%clk 0:02:45]} 5. e4 {[%clk 0:02:57]}  d6 {[%clk 0:02:42]} 6. Nge2 {[%clk 0:02:56]}  c5 {[%clk 0:02:34]} 7. O-O {[%clk 0:02:55]}  Nc6 {[%clk 0:02:33]} 8. d3 {[%clk 0:02:55]}  e5 {[%clk 0:02:33]} 9. h3 {[%clk 0:02:49]}  Be6 {[%clk 0:02:32]} 10. f4 {[%clk 0:02:49]}  exf4 {[%clk 0:02:30]} 11. gxf4 {[%clk 0:02:48]}  Qd7 {[%clk 0:02:29]} 12. Kh2 {[%clk 0:02:39]}  Nh5 {[%clk 0:02:16]} 13. Bf3 {[%clk 0:02:13]}  f5 {[%clk 0:02:01]} 14. Bxh5 {[%clk 0:02:10]}  gxh5 {[%clk 0:02:02]} 15. Rg1 {[%clk 0:02:07]}  Kh8 {[%clk 0:02:02]} 16. Be3 {[%clk 0:02:01]}  Rae8 {[%clk 0:02:00]} 17. Qf1 {[%clk 0:01:57]}  Nd4 {[%clk 0:01:57]} 18. Rd1 {[%clk 0:01:33]}  Nxe2 {[%clk 0:01:54]} 19. Qxe2 {[%clk 0:01:33]}  fxe4 {[%clk 0:01:36]} 20. dxe4 {[%clk 0:01:32]}  Bxc3 {[%clk 0:01:36]} 21. bxc3 {[%clk 0:01:31]}  Bxh3 {[%clk 0:01:37]} 22. Qxh5 {[%clk 0:01:24]}  Rxe4 {[%clk 0:01:35]} 23. Bxc5 {[%clk 0:01:23]}  Bf5 {[%clk 0:01:21]} 24. Rxd6 {[%clk 0:01:06]}  Qc7 {[%clk 0:01:08]} 25. Bd4+ {[%clk 0:01:04]}  Rxd4 {[%clk 0:01:07]} 26. Rxd4 {[%clk 0:01:05]}  b5 {[%clk 0:00:59]} 27. cxb5 {[%clk 0:00:55]}  Qxc3 {[%clk 0:00:59]} 28. Qxf5 {[%clk 0:00:54]}  Qb2+ {[%clk 0:00:51]} 29. Kh1 {[%clk 0:00:54]}  Qa3 {[%clk 0:00:47]} 30. Qe5+ {[%clk 0:00:53]} 1-0


[Site "https://www.chess.com"]